fUSD/lending_fUSD_20260529
["ID","MTS","AMOUNT","RATE_DAILY","PERIOD"]
[423357101,1780066788000,-500.0,0.00039592,120]
[423357103,1780066788000,-887.99,0.00039592,120]
[423357102,1780066788000,-500.0,0.00039592,120]
[423357104,1780066788000,-500.0,0.00039592,120]
[423357106,1780066788000,-500.0,0.00039592,120]
[423357107,1780066788000,-887.99,0.00039592,120]
[423357108,1780066788000,-500.0,0.00039592,120]
[423357110,1780066788000,-887.99,0.00039592,120]
[423357109,1780066788000,-500.0,0.00039592,120]
[423357111,1780066788000,-500.0,0.00039592,120]
[423357105,1780066788000,-500.0,0.00039592,120]
[423357112,1780066789000,-500.0,0.00039592,120]
[423357113,1780066789000,-500.0,0.00039592,120]
[423357114,1780066789000,-500.0,0.00039592,120]
[423357116,1780066789000,-500.0,0.00039592,120]
[423357115,1780066789000,-500.0,0.00039592,120]
[423357117,1780066789000,-887.99,0.00039592,120]
[423357122,1780066789000,-887.99,0.00039592,120]
[423357120,1780066789000,-500.0,0.00039592,120]
[423357125,1780066789000,-500.0,0.00039592,120]
[423357123,1780066789000,-500.0,0.00039592,120]
[423357118,1780066789000,-500.0,0.00039592,120]
[423357121,1780066789000,-500.0,0.00039592,120]
[423357119,1780066789000,-500.0,0.00039592,120]
[423357124,1780066789000,-500.0,0.00039592,120]
[423357126,1780066790000,-500.0,0.00039592,120]
[423357127,1780066790000,-887.99,0.00039592,120]
[423357128,1780066790000,-500.0,0.00039592,120]
[423357129,1780066790000,-500.0,0.00039592,120]
[423357131,1780066790000,-449.38904081,0.00039592,120]
[423357132,1780066790000,-500.0,0.00039592,120]
[423357130,1780066790000,-500.0,0.00039592,120]
[423357135,1780066790000,-887.99,0.00039592,120]
[423357134,1780066790000,-500.0,0.00039592,120]
[423357136,1780066790000,-500.0,0.00039592,120]
[423357137,1780066790000,-500.0,0.00039592,120]
[423357138,1780066790000,-500.0,0.00039592,120]
[423357139,1780066790000,-500.0,0.00039592,120]
[423357133,1780066790000,-500.0,0.00039592,120]
[423357140,1780066791000,-500.0,0.00039592,120]
[423357141,1780066791000,-500.0,0.00039592,120]
[423357142,1780066791000,-887.99,0.00039592,120]
[423357143,1780066791000,-216.43985456,0.00039592,120]
[423357146,1780066791000,-500.0,0.00039592,120]
[423357144,1780066791000,-500.0,0.00039592,120]
[423357145,1780066791000,-500.0,0.00039592,120]
[423357148,1780066791000,-500.0,0.00039592,120]
[423357150,1780066791000,-500.0,0.00039592,120]
[423357149,1780066791000,-887.99,0.00039592,120]
[423357151,1780066791000,-500.0,0.00039592,120]
[423357152,1780066791000,-500.0,0.00039592,120]
[423357153,1780066791000,-500.0,0.00039592,120]
[423357147,1780066791000,-500.0,0.00039592,120]
[423357154,1780066792000,-575.92,0.00039592,120]
[423357155,1780066792000,-500.0,0.00039592,120]
[423357156,1780066792000,-500.0,0.00039592,120]
[423357157,1780066792000,-887.99,0.00039592,120]
[423357158,1780066792000,-500.0,0.00039592,120]
[423357159,1780066792000,-500.0,0.00039592,120]
[423357161,1780066792000,-500.0,0.00039592,120]
[423357162,1780066792000,-500.0,0.00039592,120]
[423357163,1780066792000,-887.99,0.00039592,120]
[423357164,1780066792000,-500.0,0.00039592,120]
[423357165,1780066792000,-500.0,0.00039592,120]
[423357167,1780066792000,-366.49040819,0.00039592,120]
[423357166,1780066792000,-500.0,0.00039592,120]
[423357160,1780066792000,-500.0,0.00039592,120]
[423357168,1780066793000,-500.0,0.00039592,120]
[423357169,1780066793000,-887.99,0.00039592,120]
[423357170,1780066793000,-500.0,0.00039592,120]
[423357171,1780066793000,-500.0,0.00039592,120]
[423357172,1780066793000,-500.0,0.00039592,120]
[423357174,1780066793000,-887.99,0.00039592,120]
[423357175,1780066793000,-500.0,0.00039592,120]
[423357177,1780066793000,-500.0,0.00039592,120]
[423357181,1780066793000,-500.0,0.00039592,120]
[423357180,1780066793000,-500.0,0.00039592,120]
[423357173,1780066793000,-500.0,0.00039592,120]
[423357178,1780066793000,-500.0,0.00039592,120]
[423357176,1780066793000,-500.0,0.00039592,120]
[423357179,1780066793000,-887.99,0.00039592,120]
[423357182,1780066794000,-510.99,0.00039592,120]
[423357184,1780066794000,-367.68215952,0.00039592,120]
[423357183,1780066794000,-500.0,0.00039592,120]
[423357185,1780066794000,-887.99,0.00039592,120]
[423357186,1780066794000,-500.0,0.00039592,120]
[423357187,1780066794000,-500.0,0.00039592,120]
[423357189,1780066794000,-500.0,0.00039592,120]
[423357191,1780066794000,-500.0,0.00039592,120]
[423357192,1780066794000,-500.0,0.00039592,120]
[423357193,1780066794000,-510.99,0.00039592,120]
[423357194,1780066794000,-500.0,0.00039592,120]
[423357195,1780066794000,-500.0,0.00039592,120]
[423357190,1780066794000,-888.08,0.00039592,120]
[423357188,1780066794000,-510.99,0.00039592,120]
[423357201,1780066795000,-510.99,0.00039592,120]
[423357196,1780066795000,-500.0,0.00039592,120]
[423357197,1780066795000,-510.99,0.00039592,120]
[423357198,1780066795000,-500.0,0.00039592,120]
[423357199,1780066795000,-500.0,0.00039592,120]
[423357200,1780066795000,-500.0,0.00039592,120]
[423357204,1780066795000,-500.0,0.00039592,120]
[423357203,1780066795000,-500.0,0.00039592,120]
[423357205,1780066795000,-500.0,0.00039592,120]
[423357206,1780066795000,-510.99,0.00039592,120]
[423357208,1780066795000,-500.0,0.00039592,120]
[423357207,1780066795000,-500.0,0.00039592,120]
[423357209,1780066795000,-500.0,0.00039592,120]
[423357202,1780066795000,-500.0,0.00039592,120]
[423357210,1780066796000,-500.0,0.00039592,120]
[423357211,1780066796000,-510.99,0.00039592,120]
[423357212,1780066796000,-170.93,0.00039592,120]
[423357213,1780066796000,-500.0,0.00039592,120]
[423357214,1780066796000,-500.0,0.00039592,120]
[423357215,1780066796000,-500.0,0.00039592,120]
[423357216,1780066796000,-500.0,0.00039592,120]
[423357218,1780066796000,-500.0,0.00039592,120]
[423357219,1780066796000,-500.0,0.00039592,120]
[423357220,1780066796000,-500.0,0.00039592,120]
[423357221,1780066796000,-500.0,0.00039592,120]
[423357222,1780066796000,-645.95327926,0.00039592,120]
[423357217,1780066796000,-510.99,0.00039592,120]
[423357223,1780066797000,-510.99,0.00039592,120]
[423357224,1780066797000,-500.0,0.00039592,120]
[423357225,1780066797000,-500.0,0.00039592,120]
[423357227,1780066797000,-500.0,0.00039592,120]
[423357226,1780066797000,-500.0,0.00039592,120]
[423357228,1780066797000,-510.99,0.00039592,120]
[423357232,1780066797000,-500.0,0.00039592,120]
[423357230,1780066797000,-500.0,0.00039592,120]
[423357231,1780066797000,-500.0,0.00039592,120]
[423357233,1780066797000,-191.51665794,0.00039592,120]
[423357234,1780066797000,-500.0,0.00039592,120]
[423357235,1780066797000,-500.0,0.00039592,120]
[423357236,1780066797000,-510.99,0.00039592,120]
[423357229,1780066797000,-500.0,0.00039592,120]
[423357237,1780066798000,-500.0,0.00039592,120]
[423357238,1780066798000,-500.0,0.00039592,120]
[423357239,1780066798000,-500.0,0.00039592,120]
[423357241,1780066798000,-510.99,0.00039592,120]
[423357240,1780066798000,-178.98,0.00039592,120]
[423357242,1780066798000,-500.0,0.00039592,120]
[423357244,1780066798000,-500.0,0.00039592,120]
[423357243,1780066798000,-500.0,0.00039592,120]
[423357245,1780066798000,-510.99,0.00039592,120]
[423357246,1780066798000,-500.0,0.00039592,120]
[423357248,1780066798000,-181.159,0.00039592,120]
[423357247,1780066798000,-500.0,0.00039592,120]
[423357249,1780066798000,-500.0,0.00039592,120]
[423357250,1780066798000,-510.99,0.00039592,120]
[423357251,1780066799000,-500.0,0.00039592,120]
[423357252,1780066799000,-500.0,0.00039592,120]
[423357253,1780066799000,-493.77543806,0.00039592,120]
[423357255,1780066799000,-500.0,0.00039592,120]
[423357254,1780066799000,-510.99,0.00039592,120]
[423357256,1780066799000,-210.24,0.00039592,120]
[423357257,1780066799000,-510.99,0.00039592,120]
[423357259,1780066799000,-500.0,0.00039592,120]
[423357260,1780066799000,-510.99,0.00039592,120]
[423357261,1780066799000,-500.0,0.00039592,120]
[423357262,1780066799000,-286.30996063,0.00039592,120]
[423357263,1780066799000,-510.99,0.00039592,120]
[423357264,1780066799000,-510.99,0.00039592,120]
[423357258,1780066799000,-500.0,0.00039592,120]
[423357271,1780066800000,-513.73,0.00039592,120]
[423357265,1780066800000,-510.99,0.00039592,120]
[423357266,1780066800000,-371.69562703,0.00039592,120]
[423357267,1780066800000,-510.99,0.00039592,120]
[423357268,1780066800000,-510.99,0.00039592,120]
[423357269,1780066800000,-513.73,0.00039592,120]
[423357273,1780066800000,-513.73,0.00039592,120]
[423357272,1780066800000,-511.15791297,0.00039592,120]
[423357274,1780066800000,-500.0,0.00039592,120]
[423357275,1780066800000,-500.0,0.00039592,120]
[423357276,1780066800000,-500.0,0.00039592,120]
[423357277,1780066800000,-513.73,0.00039592,120]
[423357270,1780066800000,-510.99,0.00039592,120]
[423357281,1780066801000,-500.0,0.00039592,120]
[423357282,1780066801000,-513.73,0.00039592,120]
[423357283,1780066801000,-500.0,0.00039592,120]
[423357278,1780066801000,-500.0,0.00039592,120]
[423357279,1780066801000,-513.73,0.00039592,120]
[423357285,1780066801000,-513.73,0.00039592,120]
[423357280,1780066801000,-500.0,0.00039592,120]
[423357286,1780066801000,-500.0,0.00039592,120]
[423357287,1780066801000,-513.73,0.00039592,120]
[423357289,1780066801000,-500.0,0.00039592,120]
[423357291,1780066801000,-500.0,0.00039592,120]
[423357288,1780066801000,-500.0,0.00039592,120]
[423357290,1780066801000,-513.73,0.00039592,120]
[423357284,1780066801000,-397.51638637,0.00039592,120]
[423357292,1780066802000,-513.73,0.00039592,120]
[423357293,1780066802000,-500.0,0.00039592,120]
[423357294,1780066802000,-966.04,0.00039592,120]
[423357295,1780066802000,-513.73,0.00039592,120]
[423357297,1780066802000,-513.73,0.00039592,120]
[423357296,1780066802000,-966.04,0.00039592,120]
[423357298,1780066802000,-966.04,0.00039592,120]
[423357299,1780066802000,-513.73,0.00039592,120]
[423357300,1780066802000,-966.04,0.00039592,120]
[423357301,1780066802000,-513.73,0.00039592,120]
[423357302,1780066802000,-500.0,0.00039592,120]
[423357303,1780066802000,-966.04,0.00039592,120]
[423357306,1780066803000,-966.04,0.00039592,120]
[423357305,1780066803000,-513.73,0.00039592,120]
[423357307,1780066803000,-500.0,0.00039592,120]
[423357308,1780066803000,-513.73,0.00039592,120]
[423357309,1780066803000,-500.0,0.00039592,120]
[423357310,1780066803000,-966.04,0.00039592,120]
[423357304,1780066803000,-500.0,0.00039592,120]
[423357312,1780066803000,-966.04,0.00039592,120]
[423357313,1780066803000,-513.73,0.00039592,120]
[423357314,1780066803000,-500.0,0.00039592,120]
[423357315,1780066803000,-500.0,0.00039592,120]
[423357317,1780066803000,-500.0,0.00039592,120]
[423357316,1780066803000,-966.04,0.00039592,120]
[423357311,1780066803000,-269.70632077,0.00039592,120]
[423357318,1780066804000,-513.73,0.00039592,120]
[423357319,1780066804000,-500.0,0.00039592,120]
[423357320,1780066804000,-500.0,0.00039592,120]
[423357321,1780066804000,-966.04,0.00039592,120]
[423357322,1780066804000,-500.0,0.00039592,120]
[423357323,1780066804000,-513.73,0.00039592,120]
[423357324,1780066804000,-500.0,0.00039592,120]
[423357325,1780066804000,-500.0,0.00039592,120]
[423357326,1780066804000,-508.83690534,0.00039592,120]
[423357327,1780066804000,-500.0,0.00039592,120]
[423357328,1780066804000,-966.04,0.00039592,120]
[423357329,1780066805000,-513.73,0.00039592,120]
[423357330,1780066805000,-500.0,0.00039592,120]
[423357331,1780066805000,-500.0,0.00039592,120]
[423357333,1780066805000,-513.73,0.00039592,120]
[423357332,1780066805000,-500.0,0.00039592,120]
[423357334,1780066805000,-500.0,0.00039592,120]
[423357340,1780066805000,-500.0,0.00039592,120]
[423357336,1780066805000,-500.0,0.00039592,120]
[423357337,1780066805000,-509.12075777,0.00039592,120]
[423357338,1780066805000,-230.93816814,0.00039592,120]
[423357339,1780066805000,-513.73,0.00039592,120]
[423357341,1780066805000,-966.04,0.00039592,120]
[423357335,1780066805000,-966.04,0.00039592,120]
[423357346,1780066806000,-279.71170413,0.00039592,120]
[423357342,1780066806000,-500.0,0.00039592,120]
[423357343,1780066806000,-513.73,0.00039592,120]
[423357344,1780066806000,-500.0,0.00039592,120]
[423357345,1780066806000,-966.04,0.00039592,120]
[423357347,1780066806000,-513.81,0.00039592,120]
[423357348,1780066806000,-500.0,0.00039592,120]
[423357349,1780066806000,-966.04,0.00039592,120]
[423357350,1780066806000,-966.04,0.00039592,120]
[423357351,1780066806000,-500.0,0.00039592,120]
[423357352,1780066806000,-500.0,0.00039592,120]
[423357353,1780066806000,-966.04,0.00039592,120]
[423357354,1780066806000,-500.0,0.00039592,120]
[423357355,1780066807000,-500.0,0.00039592,120]
[423357356,1780066807000,-500.0,0.00039592,120]
[423357357,1780066807000,-500.0,0.00039592,120]
[423357358,1780066807000,-966.04,0.00039592,120]
[423357359,1780066807000,-500.0,0.00039592,120]
[423357361,1780066807000,-500.0,0.00039592,120]
[423357360,1780066807000,-500.0,0.00039592,120]
[423357362,1780066807000,-513.57103178,0.00039592,120]
[423357363,1780066807000,-966.04,0.00039592,120]
[423357365,1780066807000,-500.0,0.00039592,120]
[423357364,1780066807000,-500.0,0.00039592,120]
[423357366,1780066807000,-500.0,0.00039592,120]
[423357367,1780066807000,-966.04,0.00039592,120]
[423357368,1780066807000,-500.0,0.00039592,120]
[423357369,1780066808000,-500.0,0.00039592,120]
[423357370,1780066808000,-500.0,0.00039592,120]
[423357372,1780066808000,-500.0,0.00039592,120]
[423357371,1780066808000,-966.04,0.00039592,120]
[423357373,1780066808000,-500.0,0.00039592,120]
[423357374,1780066808000,-281.99881332,0.00039592,120]
[423357376,1780066808000,-500.0,0.00039592,120]
[423357375,1780066808000,-500.0,0.00039592,120]
[423357381,1780066808000,-500.0,0.00039592,120]
[423357380,1780066808000,-500.0,0.00039592,120]
[423357377,1780066808000,-966.04,0.00039592,120]
[423357378,1780066808000,-500.0,0.00039592,120]
[423357379,1780066808000,-500.0,0.00039592,120]
[423357394,1780066809000,-500.0,0.00039592,120]
[423357393,1780066809000,-500.0,0.00039592,120]
[423357392,1780066809000,-500.0,0.00039592,120]
[423357391,1780066809000,-500.0,0.00039592,120]
[423357389,1780066809000,-500.0,0.00039592,120]
[423357388,1780066809000,-500.0,0.00039592,120]
[423357387,1780066809000,-500.0,0.00039592,120]
[423357386,1780066809000,-966.19,0.00039592,120]
[423357385,1780066809000,-500.0,0.00039592,120]
[423357384,1780066809000,-500.0,0.00039592,120]
[423357383,1780066809000,-500.0,0.00039592,120]
[423357382,1780066809000,-966.04,0.00039592,120]
[423357390,1780066809000,-500.0,0.00039592,120]
[423357398,1780066810000,-335.23,0.00039592,120]
[423357397,1780066810000,-500.0,0.00039592,120]
[423357395,1780066810000,-500.0,0.00039592,120]
[423357399,1780066810000,-500.0,0.00039592,120]
[423357396,1780066810000,-500.0,0.00039592,120]
[423357400,1780066810000,-500.0,0.00039592,120]
[423357402,1780066810000,-500.0,0.00039592,120]
[423357403,1780066810000,-500.0,0.00039592,120]
[423357404,1780066810000,-500.0,0.00039592,120]
[423357405,1780066810000,-500.0,0.00039592,120]
[423357406,1780066810000,-500.0,0.00039592,120]
[423357407,1780066810000,-641.56796801,0.00039592,120]
[423357408,1780066810000,-500.0,0.00039592,120]
[423357401,1780066810000,-500.0,0.00039592,120]
[423357415,1780066811000,-500.0,0.00039592,120]
[423357409,1780066811000,-500.0,0.00039592,120]
[423357411,1780066811000,-500.0,0.00039592,120]
[423357410,1780066811000,-500.0,0.00039592,120]
[423357412,1780066811000,-500.0,0.00039592,120]
[423357413,1780066811000,-531.34956943,0.00039592,120]
[423357417,1780066811000,-500.0,0.00039592,120]
[423357416,1780066811000,-500.0,0.00039592,120]
[423357418,1780066811000,-500.0,0.00039592,120]
[423357419,1780066811000,-500.0,0.00039592,120]
[423357420,1780066811000,-336.75476721,0.00039592,120]
[423357421,1780066811000,-500.0,0.00039592,120]
[423357414,1780066811000,-304.9,0.00039592,120]
[423357425,1780066812000,-500.0,0.00039592,120]
[423357424,1780066812000,-500.0,0.00039592,120]
[423357430,1780066812000,-500.0,0.00039592,120]
[423357422,1780066812000,-500.0,0.00039592,120]
[423357426,1780066812000,-500.0,0.00039592,120]
[423357423,1780066812000,-500.0,0.00039592,120]
[423357427,1780066812000,-500.0,0.00039592,120]
[423357432,1780066812000,-500.0,0.00039592,120]
[423357429,1780066812000,-500.0,0.00039592,120]
[423357431,1780066812000,-500.0,0.00039592,120]
[423357435,1780066812000,-500.0,0.00039592,120]
[423357434,1780066812000,-500.0,0.00039592,120]
[423357433,1780066812000,-500.0,0.00039592,120]
[423357428,1780066812000,-500.0,0.00039592,120]
[423357437,1780066813000,-500.0,0.00039592,120]
[423357438,1780066813000,-416.75119147,0.00039592,120]
[423357436,1780066813000,-500.0,0.00039592,120]
[423357439,1780066844000,1200.0,8.728e-05,2]
[423357440,1780066857000,146.23341782,8.728e-05,2]
[423357443,1780066899000,-2775.38,0.0002755,30]
[423357442,1780066899000,-1324.14956678,0.00027397,30]
[423357441,1780066899000,-222.34,0.00026229,30]
[423357457,1780066900000,-244.0,0.00027977,30]
[423357455,1780066900000,-400.0,0.00027977,30]
[423357456,1780066900000,-180.0,0.00027977,30]
[423357454,1780066900000,-400.0,0.00027977,30]
[423357458,1780066900000,-2775.38,0.00028033,30]
[423357461,1780066900000,-500.0,0.00028193,120]
[423357459,1780066900000,-1639.39,0.00028033,30]
[423357452,1780066900000,-400.0,0.00027977,30]
[423357462,1780066900000,-2775.38,0.00028516,30]
[423357449,1780066900000,-150.0,0.00027977,30]
[423357451,1780066900000,-400.0,0.00027977,30]
[423357448,1780066900000,-164.43,0.00027786,30]
[423357450,1780066900000,-154.0,0.00027977,30]
[423357445,1780066900000,-163.94,0.00027668,30]
[423357446,1780066900000,-986.59,0.00027668,30]
[423357447,1780066900000,-227.0,0.00027702,30]
[423357444,1780066900000,-1639.39,0.0002755,30]
[423357453,1780066900000,-400.0,0.00027977,30]
[423357463,1780066900000,-1336.29,0.00028516,30]
[423357466,1780066900000,-500.0,0.0002861,120]
[423357465,1780066900000,-222.34,0.00028587,30]
[423357460,1780066900000,-2466.47,0.00028033,30]
[423357482,1780066900000,-182.0,0.00029074,120]
[423357481,1780066900000,-1036.41,0.0002906,30]
[423357480,1780066900000,-1036.41,0.0002904,30]
[423357479,1780066900000,-1036.41,0.0002902,30]
[423357478,1780066900000,-1036.41,0.00029,30]
[423357477,1780066900000,-2775.39,0.00029,30]
[423357476,1780066900000,-1036.41,0.0002898,30]
[423357474,1780066900000,-1036.41,0.0002896,30]
[423357483,1780066900000,-1036.41,0.0002908,30]
[423357475,1780066900000,-156.03,0.00028965,30]
[423357472,1780066900000,-150.08,0.00028924,30]
[423357471,1780066900000,-1036.41,0.0002892,30]
[423357469,1780066900000,-1324.14956678,0.00028767,30]
[423357470,1780066900000,-1036.41,0.000289,30]
[423357468,1780066900000,-406.0981632,0.0002861,120]
[423357467,1780066900000,-500.0,0.0002861,30]
[423357473,1780066900000,-1036.41,0.0002894,30]
[423357464,1780066900000,-1639.39,0.00028516,30]
[423357497,1780066901000,-172.0,0.0002989,30]
[423357495,1780066901000,-202.0,0.0002989,30]
[423357499,1780066901000,-250.0,0.00030043,120]
[423357498,1780066901000,-1000.0,0.00029999,38]
[423357493,1780066901000,-800.0,0.00029796,30]
[423357501,1780066901000,-234.0,0.00030043,120]
[423357496,1780066901000,-150.0,0.0002989,30]
[423357494,1780066901000,-152.0,0.00029796,30]
[423357491,1780066901000,-590.0,0.00029796,30]
[423357489,1780066901000,-850.0,0.00029794,30]
[423357490,1780066901000,-1255.0,0.00029794,30]
[423357488,1780066901000,-242.46472038,0.000295,56]
[423357487,1780066901000,-242.46472038,0.000295,56]
[423357485,1780066901000,-1000.0,0.00029497,37]
[423357484,1780066901000,-1036.41,0.000291,30]
[423357502,1780066901000,-184.0,0.00030048,120]
[423357492,1780066901000,-159.0,0.00029796,30]
[423357500,1780066901000,-250.0,0.00030043,120]
[423357486,1780066901000,-1000.0,0.00029499,56]
[423357505,1780066901000,-377.14776329,0.00030118,63]
[423357503,1780066901000,-461.250185,0.00030112,120]
[423357522,1780066901000,-152.0,0.00030796,30]
[423357520,1780066901000,-159.0,0.00030796,30]
[423357519,1780066901000,-590.0,0.00030796,30]
[423357521,1780066901000,-800.0,0.00030796,30]
[423357516,1780066901000,-500.0,0.00030793,120]
[423357515,1780066901000,-1000.0,0.00030784,47]
[423357517,1780066901000,-850.0,0.00030794,30]
[423357514,1780066901000,-225.9077701,0.00030755,30]
[423357518,1780066901000,-1255.0,0.00030794,30]
[423357512,1780066901000,-500.0,0.00030755,120]
[423357511,1780066901000,-156.03,0.00030735,30]
[423357506,1780066901000,-1000.0,0.00030135,43]
[423357507,1780066901000,-745.62,0.00030137,43]
[423357508,1780066901000,-1324.14956678,0.00030137,30]
[423357504,1780066901000,-377.14776329,0.00030118,63]
[423357509,1780066901000,-600.0,0.00030411,120]
[423357513,1780066901000,-500.0,0.00030755,30]
[423357510,1780066901000,-182.0,0.00030528,120]
[423357531,1780066902000,-500.0,0.00031349,120]
[423357539,1780066902000,-850.0,0.00031794,30]
[423357538,1780066902000,-1000.0,0.00031721,81]
[423357537,1780066902000,-500.0,0.00031653,30]
[423357535,1780066902000,-986.59,0.00031642,30]
[423357536,1780066902000,-500.0,0.00031653,120]
[423357534,1780066902000,-163.94,0.00031642,30]
[423357533,1780066902000,-171.08,0.00031586,120]
[423357524,1780066902000,-222.34,0.00030945,30]
[423357530,1780066902000,-500.0,0.00031349,120]
[423357527,1780066902000,-500.0,0.00031349,120]
[423357529,1780066902000,-500.0,0.00031349,30]
[423357526,1780066902000,-500.0,0.00031349,120]
[423357528,1780066902000,-500.0,0.00031349,30]
[423357525,1780066902000,-1000.0,0.00030999,32]
[423357523,1780066902000,-1000.0,0.00030905,72]
[423357540,1780066902000,-1255.0,0.00031794,30]
[423357532,1780066902000,-1324.14956678,0.00031507,30]
[423357541,1780066902000,-590.0,0.00031796,30]
[423357544,1780066902000,-152.0,0.00031796,30]
[423357542,1780066902000,-159.0,0.00031796,30]
[423357561,1780066902000,-285.69585196,0.00032,120]
[423357543,1780066902000,-800.0,0.00031796,30]
[423357558,1780066902000,-227.42043917,0.00032,120]
[423357559,1780066902000,-441.13815048,0.00032,120]
[423357555,1780066902000,-461.96472536,0.00032,120]
[423357556,1780066902000,-346.41297684,0.00032,120]
[423357557,1780066902000,-249.77682412,0.00032,120]
[423357554,1780066902000,-223.45026398,0.00032,120]
[423357560,1780066902000,-187.20665788,0.00032,120]
[423357550,1780066902000,-500.0,0.00031999,120]
[423357552,1780066902000,-557.02414741,0.00032,120]
[423357551,1780066902000,-197.15072074,0.00032,120]
[423357549,1780066902000,-1000.0,0.00031999,33]
[423357548,1780066902000,-5715.661,0.000319,30]
[423357546,1780066902000,-511.83080621,0.00031884,82]
[423357547,1780066902000,-378.455,0.000319,30]
[423357545,1780066902000,-511.83080621,0.00031884,82]
[423357553,1780066902000,-230.37702612,0.00032,120]
[423357575,1780066903000,-1000.0,0.00032231,90]
[423357571,1780066903000,-1475.96411568,0.00032,120]
[423357572,1780066903000,-268.71606169,0.00032,120]
[423357573,1780066903000,-3777.21342652,0.00032,120]
[423357570,1780066903000,-910.68754769,0.00032,120]
[423357569,1780066903000,-400.95202562,0.00032,120]
[423357562,1780066903000,-272.42351235,0.00032,120]
[423357568,1780066903000,-342.6474767,0.00032,120]
[423357567,1780066903000,-662.56675883,0.00032,120]
[423357564,1780066903000,-243.48097831,0.00032,120]
[423357563,1780066903000,-308.18119661,0.00032,120]
[423357565,1780066903000,-194.5396885,0.00032,120]
[423357566,1780066903000,-384.52302451,0.00032,120]
[423357577,1780066903000,-1000.0,0.00032232,90]
[423357574,1780066903000,-152.0,0.00032069,30]
[423357578,1780066903000,-1000.0,0.00032232,60]
[423357576,1780066903000,-1000.0,0.00032232,120]
[423357591,1780066903000,-850.0,0.00032794,30]
[423357590,1780066903000,-226.0,0.0003275,120]
[423357589,1780066903000,-150.0,0.0003275,120]
[423357587,1780066903000,-500.0,0.00032718,120]
[423357586,1780066903000,-226.0,0.000327,120]
[423357588,1780066903000,-500.0,0.00032718,30]
[423357585,1780066903000,-150.0,0.000327,120]
[423357583,1780066903000,-1903.34214,0.0003267,34]
[423357580,1780066903000,-156.03,0.00032505,30]
[423357582,1780066903000,-1000.0,0.00032669,34]
[423357581,1780066903000,-171.08,0.00032655,120]
[423357579,1780066903000,-152.0,0.0003246,31]
[423357584,1780066903000,-1903.34214,0.0003267,34]
[423357602,1780066904000,-152.0,0.0003285,32]
[423357609,1780066904000,-172.0,0.0003288,60]
[423357606,1780066904000,-1550.0,0.00032877,30]
[423357604,1780066904000,-500.0,0.00032876,120]
[423357605,1780066904000,-745.61,0.00032877,120]
[423357607,1780066904000,-1000.0,0.00032877,30]
[423357603,1780066904000,-1000.0,0.00032874,50]
[423357601,1780066904000,-226.0,0.0003285,120]
[423357592,1780066904000,-1255.0,0.00032794,30]